bitfinex/quotes_BTCUSD_20251012
["timestamp","ask_amount","ask_price","bid_price","bid_amount"]
[1760307000354,0.34,115390.0,115380.0,0.20785026]
[1760307000560,0.59295509,115390.0,115370.0,0.20786323]
[1760307000863,0.03546,115410.0,115380.0,0.27812524]
[1760307001130,0.51332524,115390.0,115370.0,0.03451]
[1760307001322,0.34,115380.0,115370.0,0.17335529]
[1760307001567,0.34,115380.0,115370.0,0.35335719]
[1760307001767,0.54880026,115380.0,115370.0,0.17335529]
[1760307002004,0.54880026,115380.0,115370.0,0.20350719]
[1760307002220,0.51335529,115370.0,115360.0,0.15402916]
[1760307002437,0.17335529,115370.0,115360.0,0.17337031]
[1760307002653,0.28134026,115380.0,115370.0,0.0301519]
[1760307002862,0.20880026,115380.0,115370.0,0.0301519]
[1760307003090,0.20980026,115380.0,115370.0,0.20350719]
[1760307003299,0.20880026,115380.0,115370.0,0.20350719]
[1760307003726,0.21745207,115390.0,115370.0,0.24514719]
[1760307003936,0.17334026,115380.0,115370.0,0.24514719]
[1760307004363,0.51334026,115380.0,115370.0,0.24514719]
[1760307004571,0.34,115380.0,115370.0,0.24514719]
[1760307004812,0.34,115380.0,115370.0,0.27965719]
[1760307005262,0.34,115380.0,115370.0,0.39499719]
[1760307005469,0.27800838,115420.0,115400.0,0.17331022]
[1760307005682,0.5132952,115410.0,115400.0,0.20346212]
[1760307005900,0.5930352,115410.0,115400.0,0.0301519]
[1760307006114,0.6654552,115410.0,115400.0,0.0301519]
[1760307006336,0.41974,115410.0,115400.0,0.20346212]
[1760307006590,0.5458452,115410.0,115400.0,0.20346212]
[1760307006803,0.00249226,115420.0,115410.0,0.2034471]
[1760307007026,0.00149226,115420.0,115410.0,0.3532971]
[1760307007475,0.00046576,115440.0,115430.0,0.17326518]
[1760307007720,0.00061335,115440.0,115430.0,0.0641719]
[1760307007940,0.00061335,115440.0,115430.0,0.35982477]
[1760307008156,0.00061335,115440.0,115430.0,0.35277708]
[1760307009011,0.00161335,115440.0,115430.0,0.43728945]
[1760307009252,0.00261335,115440.0,115430.0,0.43728945]
[1760307009485,0.00261335,115440.0,115430.0,0.39223945]
[1760307009674,0.00261335,115440.0,115430.0,0.23743708]
[1760307010018,0.00261335,115440.0,115430.0,0.35277708]
[1760307013033,0.34261335,115440.0,115430.0,0.23743708]
[1760307013216,0.34261335,115440.0,115430.0,0.28248708]
[1760307013360,0.34261335,115440.0,115430.0,0.28637215]
[1760307013562,0.34261335,115440.0,115430.0,0.35666215]
[1760307013765,0.34261335,115440.0,115430.0,0.28637215]
[1760307013969,0.34261335,115440.0,115430.0,0.35666215]
[1760307014587,0.51586352,115440.0,115430.0,0.28637215]
[1760307015000,0.59851352,115440.0,115430.0,0.20730215]
[1760307015214,0.34261335,115440.0,115430.0,0.28637215]
[1760307015950,0.34261335,115440.0,115430.0,0.35666215]
[1760307015951,0.00261335,115440.0,115430.0,0.35666215]
[1760307016160,0.04824335,115440.0,115430.0,0.32651025]
[1760307016300,0.32989352,115440.0,115430.0,0.04552507]
[1760307016502,1.28648352,115440.0,115430.0,0.1537795]
[1760307016728,1.62987019,115420.0,115400.0,0.13883483]
[1760307016941,0.6249532,115410.0,115400.0,0.13883483]
[1760307017163,0.3281152,115410.0,115400.0,0.18047483]
[1760307017375,0.20808019,115420.0,115410.0,0.0301519]
[1760307017589,0.1732952,115410.0,115400.0,0.07216]
[1760307017795,1.2850252,115410.0,115400.0,0.04164]
[1760307018036,0.6684352,115410.0,115400.0,0.04164]
[1760307018888,0.5969452,115410.0,115400.0,0.04164]
[1760307019016,0.5497552,115410.0,115400.0,0.04164]
[1760307019380,0.5947352,115410.0,115400.0,0.0717919]
[1760307019532,0.6633452,115410.0,115400.0,0.0717919]
[1760307019913,0.6623452,115410.0,115400.0,0.0717919]
[1760307020156,0.6613452,115410.0,115400.0,0.0717919]
[1760307020365,0.6633452,115410.0,115400.0,0.0717919]
[1760307020572,1.64629143,115410.0,115400.0,0.04164]
[1760307020775,1.6199352,115410.0,115400.0,0.04164]
[1760307021183,1.64629143,115410.0,115400.0,0.04164]
[1760307021381,1.64529143,115410.0,115400.0,0.04164]
[1760307021589,1.64429143,115410.0,115400.0,0.04164]
[1760307021772,1.64529143,115410.0,115400.0,0.04164]
[1760307022099,1.6199352,115410.0,115400.0,0.04164]
[1760307022250,1.6189352,115410.0,115400.0,0.04164]
[1760307022622,0.6633452,115410.0,115400.0,0.04164]
[1760307022935,0.001,115410.0,115400.0,0.40037762]
[1760307023148,0.001,115410.0,115400.0,0.39451212]
[1760307023293,0.002,115410.0,115400.0,0.39451212]
[1760307023934,0.001,115410.0,115400.0,0.39451212]
[1760307024480,0.002,115410.0,115400.0,0.39451212]
[1760307024612,0.001,115410.0,115400.0,0.39451212]
[1760307024815,0.3772,115410.0,115400.0,0.24510212]
[1760307025003,0.3782,115410.0,115400.0,0.24510212]
[1760307025609,0.5954752,115410.0,115400.0,0.0717919]
[1760307025827,0.42218,115410.0,115400.0,0.24510212]
[1760307026019,0.3782,115410.0,115400.0,0.24510212]
[1760307026225,0.5514952,115410.0,115400.0,0.24510212]
[1760307026424,0.60844457,115410.0,115400.0,0.0717919]
[1760307026634,1.6206752,115410.0,115400.0,0.04164]
[1760307026843,0.6640852,115410.0,115400.0,0.04164]
[1760307027204,0.002,115410.0,115400.0,0.37573727]
[1760307027404,0.002,115410.0,115400.0,0.32818212]
[1760307027571,0.3230852,115410.0,115400.0,0.0717919]
[1760307027772,0.3220852,115410.0,115400.0,0.08505531]
[1760307027972,0.15079,115410.0,115400.0,0.24676809]
[1760307028171,0.2554752,115410.0,115400.0,0.24676809]
[1760307028343,0.2544752,115410.0,115400.0,0.24676809]
[1760307028545,0.2554752,115410.0,115400.0,0.24676809]
[1760307029147,0.2544752,115410.0,115400.0,0.24676809]
[1760307029407,0.3240852,115410.0,115400.0,0.07345787]
[1760307030204,0.3230852,115410.0,115400.0,0.04330597]
[1760307030360,0.3240852,115410.0,115400.0,0.04330597]
[1760307030563,0.3240852,115410.0,115400.0,0.07345787]
[1760307030763,0.3230852,115410.0,115400.0,0.07345787]
[1760307030951,0.2114952,115410.0,115400.0,0.07345787]
[1760307031151,0.002,115410.0,115400.0,0.39912737]
[1760307031503,0.001,115410.0,115400.0,0.39617809]
[1760307031742,0.005,115430.0,115420.0,0.20343209]
[1760307032157,0.005,115430.0,115420.0,0.23794209]
[1760307032362,0.005,115430.0,115420.0,0.28651209]
[1760307032566,0.15379,115430.0,115420.0,0.20343209]
[1760307032939,0.25844518,115430.0,115420.0,0.20343209]
[1760307033290,0.26044518,115430.0,115420.0,0.20343209]
[1760307033986,0.18026518,115430.0,115420.0,0.20343209]
[1760307034259,0.009,115430.0,115420.0,0.20343209]
[1760307034488,0.18226518,115430.0,115420.0,0.20343209]
[1760307035016,0.009,115430.0,115420.0,0.35284209]
[1760307035224,0.009,115430.0,115420.0,0.28651209]
[1760307035569,0.009,115430.0,115420.0,0.23794209]
[1760307036344,0.009,115430.0,115420.0,0.28651209]
[1760307036713,0.18226518,115430.0,115420.0,0.28651209]
[1760307036934,0.009,115430.0,115420.0,0.28651209]
[1760307037409,0.009,115430.0,115420.0,0.28706731]
[1760307037777,0.009,115430.0,115420.0,0.35339731]
[1760307039497,0.00061335,115440.0,115430.0,0.20341708]
[1760307039694,0.0010689,115450.0,115440.0,0.20340207]
[1760307039896,0.0010689,115450.0,115440.0,0.84391545]
[1760307040098,0.0010689,115450.0,115440.0,0.98760449]
[1760307040302,0.00019083,115450.0,115440.0,0.51970063]
[1760307040478,0.00019083,115450.0,115440.0,0.35281207]
[1760307040689,0.00019083,115450.0,115440.0,0.42994053]
[1760307040903,0.00219083,115450.0,115440.0,0.35281207]
[1760307041092,0.00219083,115450.0,115440.0,0.41452851]
[1760307042578,0.00419083,115450.0,115440.0,0.41452851]
[1760307043633,0.00419083,115450.0,115440.0,0.24127834]
[1760307043850,0.04039083,115450.0,115440.0,0.23496661]
[1760307044086,0.00419083,115450.0,115440.0,0.34719851]
[1760307044314,0.00419083,115450.0,115440.0,0.41352851]
[1760307044542,0.17742599,115450.0,115440.0,0.34719851]
[1760307044742,0.00419083,115450.0,115440.0,0.34719851]
[1760307046418,0.00419083,115450.0,115440.0,0.41335851]
[1760307046594,0.00419083,115450.0,115440.0,0.35164207]
[1760307047648,0.00419083,115450.0,115440.0,0.42877053]
[1760307047855,0.00419083,115450.0,115440.0,0.35164207]
[1760307049260,0.04024083,115450.0,115440.0,0.34728084]
[1760307049569,0.00419083,115450.0,115440.0,0.41869084]
[1760307050369,0.00419083,115450.0,115440.0,0.34728084]
[1760307050571,0.00419083,115450.0,115440.0,0.41869084]
[1760307050985,0.00419083,115450.0,115440.0,0.35689207]
[1760307051549,0.00419083,115450.0,115440.0,0.43402053]
[1760307054097,0.22442516,115490.0,115480.0,0.0301519]
[1760307054329,0.1885233,115490.0,115480.0,0.1094019]
[1760307054529,0.1885233,115490.0,115480.0,0.28259206]
[1760307054530,0.5285233,115490.0,115480.0,0.28259206]
[1760307054730,0.35534814,115490.0,115480.0,0.28259206]
[1760307054933,0.5285233,115490.0,115480.0,0.28259206]
[1760307055131,0.6104333,115490.0,115480.0,0.20334206]
[1760307055331,0.68910205,115490.0,115460.0,0.0951519]
[1760307055534,0.54925516,115470.0,115460.0,0.23674071]
[1760307055686,0.37605,115470.0,115460.0,0.23674071]
[1760307055887,0.54925516,115470.0,115460.0,0.23674071]
[1760307056093,0.51320516,115470.0,115460.0,0.32398071]
[1760307056973,0.342,115470.0,115460.0,0.32398071]
[1760307057718,0.51720516,115470.0,115460.0,0.32398071]
[1760307058043,0.344,115470.0,115460.0,0.32398071]
[1760307059067,0.59921516,115470.0,115460.0,0.32398071]
[1760307059263,0.59921516,115470.0,115460.0,0.30675396]
[1760307059264,0.42601,115470.0,115460.0,0.30675396]
[1760307059531,0.59911516,115470.0,115460.0,0.1335338]
[1760307059729,1.21457916,115470.0,115460.0,0.24497206]
[1760307059934,1.21457916,115470.0,115460.0,0.0717519]
[1760307060372,1.21457916,115470.0,115460.0,0.0416]
[1760307061332,0.17323516,115450.0,115440.0,0.0617819]
[1760307061534,0.20928516,115450.0,115440.0,0.2766318]
[1760307061771,0.32515516,115450.0,115440.0,0.3067837]
[1760307061985,0.32515516,115450.0,115440.0,0.27663207]
[1760307062163,0.32515516,115450.0,115440.0,0.30678397]
[1760307062966,0.32715516,115450.0,115440.0,0.30678397]
[1760307063172,0.32715516,115450.0,115440.0,0.1335338]
[1760307063578,0.32715516,115450.0,115440.0,0.30678397]
[1760307064002,0.66815516,115450.0,115440.0,0.1335338]
[1760307064227,1.62474516,115450.0,115440.0,0.1033819]
[1760307064434,1.62474516,115450.0,115440.0,0.0416]
[1760307064435,1.73322508,115450.0,115440.0,0.0416]
[1760307064639,1.46984017,115440.0,115430.0,0.04266899]
[1760307064882,1.12985518,115430.0,115420.0,0.0617819]
[1760307065172,1.46987019,115420.0,115410.0,0.13104897]
[1760307065360,0.61879019,115420.0,115410.0,0.06941466]
[1760307065596,1.62179019,115420.0,115410.0,0.00014759]
[1760307066112,1.62179019,115420.0,115410.0,0.03029949]
[1760307066314,1.62179019,115420.0,115410.0,0.00014759]
[1760307067014,0.08246,115420.0,115410.0,0.03029949]
[1760307067216,0.03605,115420.0,115410.0,0.06390949]
[1760307067419,0.03605,115420.0,115410.0,0.23720469]
[1760307067627,0.03605,115420.0,115410.0,0.20359469]
[1760307067628,0.08246,115420.0,115410.0,0.20359469]
[1760307068130,0.08346,115420.0,115410.0,0.20359469]
[1760307068308,1.62279019,115420.0,115410.0,0.03029949]
[1760307069088,1.62379019,115420.0,115410.0,0.03029949]
[1760307070277,0.75591953,115420.0,115410.0,0.00014759]
[1760307070478,1.65014642,115420.0,115410.0,0.00014759]
[1760307070687,1.67453298,115420.0,115410.0,0.00125814]
[1760307070922,1.69070527,115420.0,115410.0,0.00125814]
[1760307071335,1.65014642,115420.0,115410.0,0.00125814]
[1760307072500,0.69355642,115420.0,115410.0,0.00931352]
[1760307073290,1.65014642,115420.0,115410.0,0.00931352]
[1760307073717,0.69355642,115420.0,115410.0,0.00931352]
[1760307074053,1.65014642,115420.0,115410.0,0.00931352]
[1760307074628,1.65014642,115420.0,115410.0,0.00125814]
[1760307074831,1.73886576,115420.0,115410.0,0.00125814]
[1760307075625,0.78227576,115420.0,115400.0,0.0416]
[1760307075849,0.17337031,115360.0,115350.0,0.06926707]
[1760307076047,0.17337031,115360.0,115350.0,0.07731964]
[1760307076048,1.62189031,115360.0,115350.0,0.07731964]
[1760307076272,1.62189031,115360.0,115350.0,0.00805257]
[1760307076653,0.17340038,115340.0,115330.0,0.0304]
[1760307077045,0.37605,115350.0,115340.0,0.17340038]
[1760307077220,0.34,115350.0,115340.0,0.32190038]
[1760307077419,0.338,115350.0,115340.0,0.32190038]
[1760307077675,0.03605,115380.0,115370.0,0.17335529]
[1760307077811,0.03605,115380.0,115370.0,0.07913]
[1760307077812,0.24260733,115380.0,115370.0,0.07913]
[1760307078015,0.39452733,115380.0,115360.0,0.20685601]
[1760307078220,0.03605,115370.0,115360.0,0.20685601]
[1760307078625,0.27940026,115380.0,115360.0,0.25026601]
[1760307078843,0.27940026,115380.0,115360.0,0.25075827]
[1760307079360,0.27940026,115380.0,115360.0,0.25175827]
[1760307079666,0.61940026,115380.0,115360.0,0.20834827]
[1760307079816,0.03315,115370.0,115360.0,0.20834827]
[1760307080019,0.03315,115370.0,115360.0,0.20934827]
[1760307080288,0.03315,115370.0,115360.0,0.20862257]
[1760307080575,0.54939026,115380.0,115370.0,0.17335529]
[1760307080900,0.54939026,115380.0,115370.0,0.24952529]
[1760307081103,0.66541026,115380.0,115360.0,0.20862257]
[1760307081307,0.27575529,115370.0,115360.0,0.00149226]
[1760307081506,0.27575529,115370.0,115360.0,0.00049226]
[1760307081681,0.32252529,115370.0,115360.0,0.00149226]
[1760307081882,0.32252529,115370.0,115360.0,0.17486257]
[1760307082098,0.17335529,115370.0,115360.0,0.25381039]
[1760307082250,0.37605,115380.0,115370.0,0.17335529]
[1760307082597,0.66541026,115380.0,115360.0,0.17486257]
[1760307082794,0.03315,115370.0,115360.0,0.17486257]
[1760307083242,0.03315,115370.0,115360.0,0.17386257]
[1760307083451,0.07992,115370.0,115360.0,0.17386257]
[1760307083940,0.54939026,115380.0,115370.0,0.17335529]
[1760307084146,0.59616026,115380.0,115370.0,0.17335529]
[1760307084546,0.66541026,115380.0,115360.0,0.20662257]
[1760307084710,0.20650529,115370.0,115360.0,0.20662257]
[1760307085055,0.03315,115370.0,115360.0,0.20662257]
[1760307085284,0.25327529,115370.0,115360.0,0.20662257]
[1760307085432,0.03315,115370.0,115360.0,0.25003257]
[1760307085856,0.03315,115370.0,115360.0,0.25103257]
[1760307086036,0.61864026,115380.0,115360.0,0.25103257]
[1760307086037,0.54939026,115380.0,115360.0,0.25103257]
[1760307086578,0.54939026,115380.0,115370.0,0.25245303]
[1760307086938,0.59616026,115380.0,115370.0,0.25245303]
[1760307087346,0.34,115380.0,115370.0,0.37733012]
[1760307087545,0.59326026,115380.0,115370.0,0.27006218]
[1760307087931,0.59326026,115380.0,115370.0,0.06394689]
[1760307088143,0.66251026,115380.0,115370.0,0.06394689]
[1760307088728,0.37315,115380.0,115370.0,0.31347218]
[1760307088932,0.03605,115390.0,115380.0,0.17334026]
[1760307089150,0.25614524,115390.0,115370.0,0.33392012]
[1760307089364,0.25614524,115390.0,115380.0,0.06172483]
[1760307089563,0.25614524,115390.0,115380.0,0.23506509]
[1760307090180,0.59614524,115390.0,115380.0,0.23506509]
[1760307090385,0.34,115380.0,115370.0,0.37947565]
[1760307090562,0.59326026,115380.0,115370.0,0.35680565]
[1760307090768,0.37315,115380.0,115370.0,0.35680565]
[1760307090990,0.34,115380.0,115370.0,0.42288565]
[1760307091398,0.34,115380.0,115370.0,0.34575719]
[1760307091599,0.34,115380.0,115370.0,0.4241535]
[1760307091800,0.41992,115380.0,115370.0,0.31466349]
[1760307092024,0.34,115380.0,115370.0,0.35807349]
[1760307092244,0.17332524,115390.0,115380.0,0.17333222]
[1760307092468,0.17332524,115390.0,115380.0,0.24950222]
[1760307092681,0.25324524,115390.0,115380.0,0.31145396]
[1760307092877,0.25324524,115390.0,115380.0,0.06195174]
[1760307092878,0.32249524,115390.0,115380.0,0.06195174]
[1760307093479,0.32249524,115390.0,115370.0,0.31365369]
[1760307093664,0.32249524,115390.0,115380.0,0.23533819]
[1760307094028,0.32249524,115390.0,115380.0,0.06199793]
[1760307094506,0.32249524,115390.0,115380.0,0.0637093]
[1760307095464,0.32249524,115390.0,115380.0,0.0016664]
[1760307096104,0.34774802,115390.0,115380.0,0.06373622]
[1760307096314,1.32055702,115390.0,115380.0,0.06373622]
[1760307096539,1.34720556,115390.0,115370.0,0.0773865]
[1760307096753,1.34720556,115390.0,115340.0,0.0773865]
[1760307096754,1.12994529,115370.0,115340.0,0.0773865]
[1760307096992,0.17340038,115340.0,115330.0,0.17705357]
[1760307097258,0.17340038,115340.0,115330.0,0.09981552]
[1760307097259,0.25332038,115340.0,115330.0,0.09981552]
[1760307097463,0.32257038,115340.0,115330.0,0.10793495]
[1760307097682,0.32257038,115340.0,115330.0,0.03054845]
[1760307097919,0.03315,115350.0,115330.0,0.42360036]
[1760307098118,0.2065357,115350.0,115340.0,0.001]
[1760307098338,0.33239362,115350.0,115340.0,0.001]
[1760307098583,0.17340038,115340.0,115330.0,0.03054845]
[1760307098797,0.20655038,115340.0,115330.0,0.03154845]
[1760307098983,0.32257038,115340.0,115330.0,0.03154845]
[1760307099649,0.27257038,115340.0,115330.0,0.03154845]
[1760307100203,0.27257038,115340.0,115330.0,0.03054845]
[1760307100614,1.22916038,115340.0,115330.0,0.03054845]
[1760307100819,1.22816038,115340.0,115330.0,0.03054845]
[1760307101668,1.22816038,115340.0,115330.0,0.03154845]
[1760307102840,1.22816038,115340.0,115330.0,0.03432735]
[1760307103021,1.28022014,115340.0,115330.0,0.03432735]
[1760307103224,1.2548326,115340.0,115330.0,0.03432735]
[1760307104089,1.28022014,115340.0,115330.0,0.03332735]
[1760307104280,1.2548326,115340.0,115330.0,0.03332735]
[1760307105089,1.5948326,115340.0,115330.0,0.03332735]
[1760307105372,1.56816038,115340.0,115330.0,0.07982308]
[1760307106331,0.03315,115360.0,115340.0,0.20355228]
[1760307106600,0.20652031,115360.0,115350.0,0.03257]
[1760307106849,0.34,115350.0,115340.0,0.36494692]
[1760307107100,0.34,115350.0,115340.0,0.29805687]
[1760307107386,0.17338534,115350.0,115340.0,0.29805687]
[1760307107634,0.20652031,115360.0,115340.0,0.34158687]
[1760307107879,0.34,115350.0,115340.0,0.27965228]
[1760307108113,0.34,115350.0,115340.0,0.34654228]
[1760307108318,0.51338534,115350.0,115340.0,0.27965228]
[1760307108520,0.41662,115350.0,115340.0,0.29804275]
[1760307109027,0.41662,115350.0,115340.0,0.26547275]
[1760307109223,0.37399,115350.0,115340.0,0.34543275]
[1760307109431,0.41816,115350.0,115340.0,0.29888275]
[1760307109628,0.37399,115350.0,115340.0,0.36089878]
[1760307110260,0.34,115350.0,115340.0,0.42721878]
[1760307110407,0.34,115350.0,115340.0,0.34983228]
[1760307110603,0.20652031,115360.0,115350.0,0.17338534]
[1760307110864,0.03315,115360.0,115350.0,0.31201558]
[1760307111014,0.20733325,115380.0,115360.0,0.20352221]
[1760307111222,0.20733325,115380.0,115370.0,0.06191823]
[1760307111482,0.25150325,115380.0,115370.0,0.06191823]
[1760307111610,0.32099325,115380.0,115370.0,0.06191823]
[1760307112024,0.17335529,115370.0,115360.0,0.06191823]
[1760307112258,0.20816529,115370.0,115360.0,0.06191823]
[1760307112494,0.32182529,115370.0,115360.0,0.06191823]
[1760307112941,0.25233529,115370.0,115360.0,0.23528854]
[1760307113128,0.20683325,115380.0,115360.0,0.34456044]
[1760307113362,0.17335529,115370.0,115360.0,0.28264221]
[1760307113567,0.07898,115370.0,115360.0,0.3135027]
[1760307113951,0.22225187,115390.0,115380.0,0.17334026]
[1760307113952,0.04990514,115390.0,115380.0,0.17334026]
[1760307114192,0.00545037,115390.0,115380.0,0.34977216]
[1760307114431,0.00092011,115390.0,115380.0,0.45825763]
[1760307114903,0.00092011,115390.0,115380.0,0.31197763]
[1760307114904,0.07990011,115390.0,115380.0,0.31197763]
[1760307115124,0.00092011,115390.0,115380.0,0.45825763]
[1760307115337,0.17424535,115390.0,115380.0,0.39193763]
[1760307115559,0.20905535,115390.0,115380.0,0.28345216]
[1760307115765,0.00092011,115390.0,115380.0,0.34977216]
[1760307115974,0.00092011,115390.0,115380.0,0.45825763]
[1760307116399,0.17424535,115390.0,115380.0,0.3607983]
[1760307116599,0.20905535,115390.0,115380.0,0.3627983]
[1760307116999,0.20905535,115390.0,115380.0,0.3637983]
[1760307117177,0.03573011,115390.0,115380.0,0.3637983]
[1760307117380,0.00092011,115390.0,115380.0,0.35277216]
[1760307117732,0.00092011,115390.0,115380.0,0.3637983]
[1760307118141,0.00092011,115390.0,115380.0,0.28645216]
[1760307118623,0.00092011,115390.0,115380.0,0.35277216]
[1760307119382,0.00092011,115390.0,115380.0,0.41463305]
[1760307120371,0.25322535,115390.0,115380.0,0.30176305]
[1760307120577,0.07990011,115390.0,115380.0,0.3172483]
[1760307120710,0.07990011,115390.0,115380.0,0.07292989]
[1760307120711,0.32271535,115390.0,115380.0,0.07292989]
[1760307120895,1.33238897,115390.0,115380.0,0.07292989]
[1760307121102,1.27930535,115390.0,115380.0,0.07292989]
[1760307121496,1.33136511,115390.0,115380.0,0.05747464]
[1760307121689,1.27930535,115390.0,115380.0,0.05747464]
[1760307121888,1.27930535,115390.0,115380.0,0.04941823]
[1760307122049,1.33136511,115390.0,115380.0,0.04841823]
[1760307122251,1.33136511,115390.0,115380.0,0.04641823]
[1760307122455,0.66778726,115380.0,115370.0,0.04697382]
[1760307122661,0.77008726,115380.0,115370.0,0.04697382]
[1760307122882,0.81425726,115380.0,115370.0,0.04697382]
[1760307123087,0.81325726,115380.0,115370.0,0.04697382]
[1760307123289,0.81325726,115380.0,115370.0,0.06242907]
[1760307123494,0.81225726,115380.0,115370.0,0.00055559]
[1760307123831,0.81225726,115380.0,115370.0,0.00255559]
[1760307124140,0.31581026,115380.0,115370.0,0.00055559]
[1760307124344,0.31581026,115380.0,115370.0,0.00155559]
[1760307124662,0.06,115380.0,115370.0,0.41237626]
[1760307125045,0.06,115380.0,115370.0,0.35050278]
[1760307125448,0.06,115380.0,115370.0,0.42684892]
[1760307126693,0.00092011,115390.0,115380.0,0.17334026]
[1760307126967,0.00092011,115390.0,115380.0,0.3151767]
[1760307127270,0.00092011,115390.0,115380.0,1.01239799]
[1760307127498,0.00092011,115390.0,115380.0,1.11741147]
[1760307127613,1e-08,115390.0,115380.0,1.11741147]
[1760307127826,1e-08,115390.0,115380.0,0.4271183]
[1760307128393,1e-08,115390.0,115380.0,0.34977216]
[1760307128746,1e-08,115390.0,115380.0,0.35077216]
[1760307129398,1e-08,115390.0,115380.0,0.41260538]
[1760307129727,1e-08,115390.0,115380.0,0.34628538]
[1760307129932,1e-08,115390.0,115380.0,0.41260538]
[1760307130133,8.555e-05,115390.0,115380.0,0.41260538]
[1760307132323,8.555e-05,115390.0,115380.0,1.10289855]
[1760307132651,0.11361724,115440.0,115430.0,0.17326518]
[1760307132861,0.11361724,115440.0,115420.0,0.17326697]
[1760307132862,0.28736174,115440.0,115420.0,0.26027551]
[1760307133063,0.21809467,115440.0,115420.0,0.32659551]
[1760307133609,0.21809467,115440.0,115430.0,0.02319366]
[1760307134020,0.26226467,115440.0,115430.0,0.02319366]
[1760307134661,0.26226467,115440.0,115430.0,0.41755115]
[1760307134662,0.00049433,115440.0,115430.0,0.41755115]
[1760307134927,0.00049433,115440.0,115430.0,0.42648929]
[1760307135363,0.00049433,115440.0,115430.0,1.08585758]
[1760307135584,0.71865916,115470.0,115460.0,0.0301519]
[1760307135791,0.71880736,115470.0,115460.0,0.13513328]
[1760307135992,0.86727736,115470.0,115460.0,0.04174894]
[1760307136195,1.83370783,115470.0,115460.0,0.01855711]
[1760307137041,1.83470783,115470.0,115460.0,0.01855711]
[1760307137241,1.83470783,115470.0,115460.0,0.04174894]
[1760307137561,2.17570783,115470.0,115460.0,0.04174894]
[1760307137971,2.17570783,115470.0,115460.0,0.01855711]
[1760307138172,2.17570783,115470.0,115460.0,0.04174894]
[1760307138562,2.18014836,115470.0,115460.0,0.04174894]
[1760307140449,2.18014836,115470.0,115460.0,0.10282328]
[1760307140450,1.06524789,115470.0,115460.0,0.10282328]
[1760307140662,1.06524789,115470.0,115460.0,0.37708527]
[1760307140831,1.06524789,115470.0,115460.0,0.20386511]
[1760307141038,1.06524789,115470.0,115460.0,0.17294267]
[1760307141236,1.21117789,115470.0,115460.0,0.09509267]
[1760307142647,1.21117789,115470.0,115460.0,0.06494077]
[1760307143037,2.25648723,115470.0,115460.0,0.09586556]
[1760307143278,2.19444011,115470.0,115460.0,0.0726802]
[1760307143429,2.19444011,115470.0,115450.0,0.04638366]
[1760307143430,1.62981016,115460.0,115450.0,0.07730845]
[1760307143628,1.21515805,115460.0,115450.0,0.03092479]
[1760307143832,1.30625609,115460.0,115450.0,0.03092479]
[1760307144034,1.62982516,115450.0,115440.0,0.07730845]
[1760307144256,0.23455738,115450.0,115440.0,0.03092479]
[1760307144476,0.17326518,115430.0,115420.0,0.11090707]
[1760307144679,1.3024574,115430.0,115420.0,0.04164]
[1760307144882,0.3458674,115430.0,115420.0,0.04164]
[1760307145079,1.3024574,115430.0,115420.0,0.04164]
[1760307145281,1.32648307,115430.0,115420.0,0.04164]
[1760307145728,1.32663119,115430.0,115420.0,0.04164]
[1760307146286,1.2759333,115430.0,115420.0,0.04164]
[1760307146946,1.30260552,115430.0,115420.0,0.04970072]
[1760307148857,1.30260552,115430.0,115420.0,0.04164]
[1760307149541,1.2759333,115430.0,115420.0,0.04164]
[1760307149724,1.27815434,115430.0,115420.0,0.04164]
[1760307149944,0.08071916,115430.0,115420.0,0.24507209]
[1760307150151,0.00236916,115430.0,115420.0,0.43718575]
[1760307150380,0.00236916,115430.0,115420.0,0.39080209]
[1760307150596,0.00236916,115430.0,115420.0,0.21148678]
[1760307150819,0.25398434,115430.0,115420.0,0.24507209]
[1760307151057,0.32156434,115430.0,115420.0,0.11820404]
[1760307151516,1.27815434,115430.0,115420.0,0.04164]
[1760307152702,0.32156434,115430.0,115420.0,0.04164]
[1760307152914,0.32156434,115430.0,115420.0,0.0497001]
[1760307153338,0.32156434,115430.0,115420.0,0.09611224]
[1760307154365,0.00236916,115430.0,115420.0,0.37739433]
[1760307154584,0.00236916,115430.0,115420.0,0.46070707]
[1760307154787,0.00236916,115430.0,115420.0,0.45264697]
[1760307155375,0.17563434,115430.0,115420.0,0.39283066]
[1760307155783,0.00236916,115430.0,115420.0,0.39283066]
[1760307155963,0.17563434,115430.0,115420.0,0.38476697]
[1760307156472,0.00236916,115430.0,115420.0,0.38476697]
[1760307156647,0.17563434,115430.0,115420.0,0.38476697]
[1760307156859,0.00236916,115430.0,115420.0,0.45264697]
[1760307157205,0.00236916,115430.0,115420.0,0.39080209]
[1760307157612,0.00236916,115430.0,115420.0,0.46814823]
[1760307157792,0.00236916,115430.0,115420.0,0.39080209]
[1760307157946,0.00236916,115430.0,115420.0,0.46814823]
[1760307158148,0.00236916,115430.0,115420.0,0.40026823]
[1760307158149,0.17563434,115430.0,115420.0,0.40026823]
[1760307158353,0.32156434,115430.0,115420.0,0.13372918]
[1760307158569,0.03701916,115430.0,115420.0,0.33903937]
[1760307158785,0.17563434,115430.0,115420.0,0.38485937]
[1760307159805,0.17563434,115430.0,115420.0,0.33903937]
[1760307159806,0.21933434,115430.0,115420.0,0.33903937]
[1760307160131,0.08071916,115430.0,115420.0,0.3150725]
[1760307160476,0.08071916,115430.0,115420.0,0.38485937]
[1760307160477,0.00236916,115430.0,115420.0,0.38485937]
[1760307160884,0.00236916,115430.0,115420.0,0.39292252]
[1760307161088,0.00236916,115430.0,115420.0,0.46080252]
[1760307161516,0.00236916,115430.0,115420.0,0.39292252]
[1760307162087,0.08071916,115430.0,115420.0,0.34710252]
[1760307162282,0.03701916,115430.0,115420.0,0.34710252]
[1760307162524,0.21028434,115430.0,115420.0,0.34710252]
[1760307163063,0.25398434,115430.0,115420.0,0.31507252]
[1760307163260,0.25398434,115430.0,115420.0,0.25313524]
[1760307163429,0.25398434,115430.0,115420.0,0.29957681]
[1760307163597,0.25398434,115430.0,115420.0,0.25313524]
[1760307164442,0.25398434,115430.0,115420.0,0.29956077]
[1760307165205,0.25398434,115430.0,115420.0,0.12628058]
[1760307165399,0.31804434,115430.0,115420.0,0.09612868]
[1760307165941,0.31804434,115430.0,115420.0,0.08806553]
[1760307166510,0.25398434,115430.0,115420.0,0.21492019]
[1760307166716,0.17563434,115430.0,115420.0,0.33775572]
[1760307167383,0.17563434,115430.0,115420.0,0.43571762]
[1760307167384,0.00236916,115430.0,115420.0,0.43571762]
[1760307167534,0.17563434,115430.0,115420.0,0.36790762]
[1760307167854,0.25422434,115430.0,115420.0,0.29149762]
[1760307168070,0.25422434,115430.0,115420.0,0.11821743]
[1760307168271,0.31828434,115430.0,115420.0,0.29149762]
[1760307168709,0.31828434,115430.0,115420.0,0.42987762]
[1760307168710,0.00236916,115430.0,115420.0,0.42987762]
[1760307168942,0.00236916,115430.0,115420.0,0.91359123]